[Event "Live Chess"]
[Site "Chess.com"]
[Date "2023.05.21"]
[Round "-"]
[White "smoggyrabbit"]
[Black "domrobson"]
[Result "0-1"]
[WhiteElo "1749"]
[BlackElo "1755"]
[TimeControl "300"]
[EndTime "18:39:17 PDT"]
[Termination "domrobson won by checkmate"]

1. d4 {[%clk 0:04:58.9]} 1... Nf6 {[%clk 0:04:58.9]} 2. Nf3 {[%clk 0:04:57.4]}
2... e6 {[%clk 0:04:57.8]} 3. e3 {[%clk 0:04:56.5]} 3... d5 {[%clk 0:04:57.2]}
4. Bd3 {[%clk 0:04:55.5]} 4... c5 {[%clk 0:04:56.4]} 5. b3 {[%clk 0:04:54.9]}
5... cxd4 {[%clk 0:04:53.8]} 6. exd4 {[%clk 0:04:54.8]} 6... Nc6 {[%clk
0:04:52.6]} 7. Bb2 {[%clk 0:04:53.1]} 7... Bd6 {[%clk 0:04:52]} 8. O-O {[%clk
0:04:52.3]} 8... O-O {[%clk 0:04:51.4]} 9. Nbd2 {[%clk 0:04:51.3]} 9... h6
{[%clk 0:04:49.7]} 10. Ne5 {[%clk 0:04:49.5]} 10... Qc7 {[%clk 0:04:47.4]} 11.
f4 {[%clk 0:04:47.9]} 11... Qb6 {[%clk 0:04:40.6]} 12. Ndf3 {[%clk 0:04:45]}
12... Ne4 {[%clk 0:04:36.4]} 13. c4 {[%clk 0:04:10]} 13... Bxe5 {[%clk
0:04:16.7]} 14. fxe5 {[%clk 0:04:01.9]} 14... f5 {[%clk 0:04:10.9]} 15. Kh1
{[%clk 0:03:50.8]} 15... Ne7 {[%clk 0:04:01.6]} 16. Bxe4 {[%clk 0:03:07.4]}
16... fxe4 {[%clk 0:03:56.2]} 17. c5 {[%clk 0:02:42.6]} 17... Qd8 {[%clk
0:03:46.8]} 18. Nh4 {[%clk 0:02:36.6]} 18... Rxf1+ {[%clk 0:03:44.2]} 19. Qxf1
{[%clk 0:02:36.5]} 19... Qf8 {[%clk 0:03:42.2]} 20. Qxf8+ {[%clk 0:02:34]} 20...
Kxf8 {[%clk 0:03:40.9]} 21. Rf1+ {[%clk 0:02:31.2]} 21... Kg8 {[%clk 0:03:40.5]}
22. b4 {[%clk 0:01:55]} 22... g5 {[%clk 0:03:38.8]} 23. g3 {[%clk 0:01:39.3]}
23... gxh4 {[%clk 0:03:36.7]} 24. gxh4 {[%clk 0:01:39.2]} 24... Bd7 {[%clk
0:03:33]} 25. Bc1 {[%clk 0:01:30.1]} 25... Nf5 {[%clk 0:03:30.5]} 26. Rg1+
{[%clk 0:01:25.1]} 26... Kh7 {[%clk 0:03:29.2]} 27. h5 {[%clk 0:01:23]} 27...
Rg8 {[%clk 0:03:27.6]} 28. Rxg8 {[%clk 0:01:20.3]} 28... Kxg8 {[%clk 0:03:26.5]}
29. Kg2 {[%clk 0:01:19.5]} 29... Kh7 {[%clk 0:03:25.7]} 30. Kf2 {[%clk
0:01:13.9]} 30... Nxd4 {[%clk 0:03:24.2]} 31. Bb2 {[%clk 0:01:03.8]} 31... Nf5
{[%clk 0:03:22.4]} 32. a3 {[%clk 0:00:55.9]} 32... a6 {[%clk 0:03:20.1]} 33. Ke2
{[%clk 0:00:53.5]} 33... Be8 {[%clk 0:03:15.7]} 34. Kf2 {[%clk 0:00:44.6]} 34...
Bxh5 {[%clk 0:03:13.6]} 35. a4 {[%clk 0:00:43.5]} 35... Be8 {[%clk 0:03:12.3]}
36. a5 {[%clk 0:00:40.3]} 36... Bb5 {[%clk 0:03:09.9]} 37. Bc3 {[%clk
0:00:35.1]} 37... d4 {[%clk 0:03:08.3]} 38. Bb2 {[%clk 0:00:32.7]} 38... e3+
{[%clk 0:03:07.2]} 39. Ke1 {[%clk 0:00:31.2]} 39... d3 {[%clk 0:03:06.4]} 40.
Kd1 {[%clk 0:00:29.4]} 40... e2+ {[%clk 0:02:58.3]} 41. Ke1 {[%clk 0:00:21.5]}
41... Ne3 {[%clk 0:02:57.2]} 42. Bc3 {[%clk 0:00:19.6]} 42... Nc2+ {[%clk
0:02:55.2]} 43. Kf2 {[%clk 0:00:18.7]} 43... e1=Q+ {[%clk 0:02:53.6]} 44. Bxe1
{[%clk 0:00:17.6]} 44... Nxe1 {[%clk 0:02:53.1]} 45. Kxe1 {[%clk 0:00:17.5]}
45... Kg6 {[%clk 0:02:52.3]} 46. Kd2 {[%clk 0:00:16.7]} 46... Kf5 {[%clk
0:02:51.8]} 47. Ke3 {[%clk 0:00:15.7]} 47... Kxe5 {[%clk 0:02:51.7]} 48. Kd2
{[%clk 0:00:14.3]} 48... Kd4 {[%clk 0:02:51]} 49. Kd1 {[%clk 0:00:13.1]} 49...
e5 {[%clk 0:02:50.4]} 50. h4 {[%clk 0:00:11.7]} 50... e4 {[%clk 0:02:49.8]} 51.
h5 {[%clk 0:00:10.9]} 51... e3 {[%clk 0:02:49.1]} 52. c6 {[%clk 0:00:09.7]}
52... bxc6 {[%clk 0:02:47.8]} 53. Ke1 {[%clk 0:00:08.7]} 53... d2+ {[%clk
0:02:46.9]} 54. Kd1 {[%clk 0:00:07.7]} 54... Ba4+ {[%clk 0:02:46.4]} 55. Ke2
{[%clk 0:00:06.4]} 55... d1=Q# {[%clk 0:02:46.3]} 0-1

[Event "Live Chess"]
[Site "Chess.com"]
[Date "2023.05.21"]
[Round "-"]
[White "Conradical12"]
[Black "garyjc"]
[Result "1-0"]
[WhiteElo "1651"]
[BlackElo "1046"]
[TimeControl "300"]
[EndTime "18:39:18 PDT"]
[Termination "Conradical12 won on time"]

1. e4 {[%clk 0:04:57.4]} 1... c5 {[%clk 0:04:57.4]} 2. Nf3 {[%clk 0:04:56.2]}
2... Nc6 {[%clk 0:04:54.2]} 3. Bc4 {[%clk 0:04:55.5]} 3... g6 {[%clk 0:04:52.6]}
4. d3 {[%clk 0:04:54]} 4... Bg7 {[%clk 0:04:50.2]} 5. c3 {[%clk 0:04:53.2]} 5...
d6 {[%clk 0:04:42.9]} 6. Be3 {[%clk 0:04:51.7]} 6... Nf6 {[%clk 0:04:34.2]} 7.
Qd2 {[%clk 0:04:50.1]} 7... Ng4 {[%clk 0:04:31.4]} 8. O-O {[%clk 0:04:45.2]}
8... Nxe3 {[%clk 0:04:28.6]} 9. Qxe3 {[%clk 0:04:43.8]} 9... O-O {[%clk
0:04:27.4]} 10. Nbd2 {[%clk 0:04:42.1]} 10... a6 {[%clk 0:04:18.1]} 11. a4
{[%clk 0:04:39.9]} 11... Na5 {[%clk 0:04:13.6]} 12. Ba2 {[%clk 0:04:37.9]} 12...
b5 {[%clk 0:04:05.6]} 13. axb5 {[%clk 0:04:35.8]} 13... axb5 {[%clk 0:04:03.2]}
14. Bd5 {[%clk 0:04:34.4]} 14... Rb8 {[%clk 0:03:57.7]} 15. Ng5 {[%clk
0:04:25.6]} 15... e6 {[%clk 0:03:44.5]} 16. Ba2 {[%clk 0:04:23.4]} 16... Nc6
{[%clk 0:03:37.7]} 17. Ndf3 {[%clk 0:04:13.8]} 17... b4 {[%clk 0:02:59.9]} 18.
Bb3 {[%clk 0:04:00.2]} 18... bxc3 {[%clk 0:02:49.1]} 19. Ba2 {[%clk 0:03:22.4]}
19... cxb2 {[%clk 0:02:29.8]} 20. Rab1 {[%clk 0:03:20.4]} 20... Ra8 {[%clk
0:02:20.4]} 21. Bc4 {[%clk 0:03:17.8]} 21... Ra1 {[%clk 0:02:00.9]} 22. Bb5
{[%clk 0:03:05.4]} 22... Rxb1 {[%clk 0:01:57.9]} 23. Rxb1 {[%clk 0:03:03.2]}
23... Qb6 {[%clk 0:01:51]} 24. Bxc6 {[%clk 0:03:00.4]} 24... Qxc6 {[%clk
0:01:48.3]} 25. e5 {[%clk 0:02:54.1]} 25... f6 {[%clk 0:01:03]} 26. exf6 {[%clk
0:02:48.4]} 26... Bxf6 {[%clk 0:01:01.2]} 27. Ne4 {[%clk 0:02:46.7]} 27... Bg7
{[%clk 0:00:47]} 28. d4 {[%clk 0:02:31.3]} 28... cxd4 {[%clk 0:00:27.9]} 29.
Nxd4 {[%clk 0:02:28.9]} 29... Bxd4 {[%clk 0:00:11.4]} 30. Qxd4 {[%clk
0:02:19.4]} 30... Qc2 {[%clk 0:00:08.9]} 31. Nf6+ {[%clk 0:02:01.9]} 31... Rxf6
{[%clk 0:00:06.3]} 32. Qxb2 {[%clk 0:01:55.8]} 1-0

[Event "Live Chess"]
[Site "Chess.com"]
[Date "2023.05.21"]
[Round "-"]
[White "Fazer180"]
[Black "worldchessleaguelive"]
[Result "1-0"]
[WhiteElo "1765"]
[BlackElo "1390"]
[TimeControl "300"]
[EndTime "18:39:21 PDT"]
[Termination "Fazer180 won by resignation"]

1. e4 {[%clk 0:04:58.3]} 1... d5 {[%clk 0:04:59.2]} 2. exd5 {[%clk 0:04:56.8]}
2... Qxd5 {[%clk 0:04:57.8]} 3. Nc3 {[%clk 0:04:56.4]} 3... Qd8 {[%clk 0:04:57]}
4. d4 {[%clk 0:04:56]} 4... Nf6 {[%clk 0:04:56.4]} 5. h3 {[%clk 0:04:54.5]} 5...
e6 {[%clk 0:04:55.8]} 6. Nf3 {[%clk 0:04:53.1]} 6... Be7 {[%clk 0:04:55.2]} 7.
Bc4 {[%clk 0:04:44.7]} 7... O-O {[%clk 0:04:49.5]} 8. Be3 {[%clk 0:04:41.8]}
8... Nd5 {[%clk 0:04:48.5]} 9. Nxd5 {[%clk 0:04:34.3]} 9... exd5 {[%clk
0:04:47.7]} 10. Bd3 {[%clk 0:04:33.3]} 10... Re8 {[%clk 0:04:44.9]} 11. O-O
{[%clk 0:04:30.9]} 11... c6 {[%clk 0:04:43.1]} 12. c3 {[%clk 0:04:27.1]} 12...
Nd7 {[%clk 0:04:41.1]} 13. Qc2 {[%clk 0:04:24.9]} 13... g6 {[%clk 0:04:39.2]}
14. Rfe1 {[%clk 0:04:10.8]} 14... Bf6 {[%clk 0:04:38.2]} 15. Bf4 {[%clk
0:04:02.8]} 15... Rxe1+ {[%clk 0:04:26.7]} 16. Rxe1 {[%clk 0:04:00.9]} 16... Qf8
{[%clk 0:04:24.5]} 17. Qe2 {[%clk 0:03:49]} 17... b6 {[%clk 0:04:02.4]} 18. Ne5
{[%clk 0:03:38.7]} 18... Nxe5 {[%clk 0:04:00.9]} 19. Bxe5 {[%clk 0:03:37.5]}
19... Bxe5 {[%clk 0:03:59.5]} 20. Qxe5 {[%clk 0:03:34.5]} 20... Bb7 {[%clk
0:03:53]} 21. Qc7 {[%clk 0:03:32]} 21... Rb8 {[%clk 0:03:46.2]} 22. Re7 {[%clk
0:03:26.8]} 22... c5 {[%clk 0:03:34.2]} 23. dxc5 {[%clk 0:03:17.1]} 23... bxc5
{[%clk 0:03:31.3]} 24. Qxc5 {[%clk 0:03:05.1]} 24... Rc8 {[%clk 0:03:22.2]} 25.
Qb4 {[%clk 0:02:55.6]} 25... Ba8 {[%clk 0:03:14.6]} 26. Rxa7 {[%clk 0:02:47.9]}
26... Qxb4 {[%clk 0:03:08.2]} 27. cxb4 {[%clk 0:02:47.8]} 27... d4 {[%clk
0:03:00.4]} 28. b3 {[%clk 0:02:34.4]} 28... Bd5 {[%clk 0:02:57.1]} 29. Rd7
{[%clk 0:02:24.1]} 29... Be6 {[%clk 0:02:45.8]} 30. Rxd4 {[%clk 0:02:21.7]} 1-0

[Event "Live Chess"]
[Site "Chess.com"]
[Date "2023.05.21"]
[Round "-"]
[White "chessfiction"]
[Black "CheckThis4"]
[Result "1/2-1/2"]
[WhiteElo "2356"]
[BlackElo "2512"]
[TimeControl "300"]
[EndTime "18:39:28 PDT"]
[Termination "Game drawn by agreement"]

1. e4 {[%clk 0:04:57.4]} 1... c5 {[%clk 0:04:57.4]} 2. Nf3 {[%clk 0:04:55.8]}
2... d6 {[%clk 0:04:56.8]} 3. d4 {[%clk 0:04:54.9]} 3... cxd4 {[%clk 0:04:56.2]}
4. Nxd4 {[%clk 0:04:54]} 4... Nf6 {[%clk 0:04:55.9]} 5. Nc3 {[%clk 0:04:53.4]}
5... g6 {[%clk 0:04:55.5]} 6. h4 {[%clk 0:04:51.8]} 6... Nc6 {[%clk 0:04:53.4]}
7. Nxc6 {[%clk 0:04:50.7]} 7... bxc6 {[%clk 0:04:53.3]} 8. Be2 {[%clk
0:04:48.3]} 8... h5 {[%clk 0:04:49.6]} 9. Bg5 {[%clk 0:04:45.3]} 9... Bg7 {[%clk
0:04:48.4]} 10. Qd2 {[%clk 0:04:44.4]} 10... Rb8 {[%clk 0:04:46.9]} 11. O-O-O
{[%clk 0:04:41.2]} 11... Qb6 {[%clk 0:04:40.4]} 12. Na4 {[%clk 0:04:38.5]} 12...
Qb4 {[%clk 0:04:19.9]} 13. Qxb4 {[%clk 0:04:26.6]} 13... Rxb4 {[%clk 0:04:17.8]}
14. Nc3 {[%clk 0:04:26.5]} 14... Nxe4 {[%clk 0:04:12.4]} 15. Nxe4 {[%clk
0:04:25.7]} 15... Bxb2+ {[%clk 0:04:06.2]} 16. Kd2 {[%clk 0:04:24.8]} 16... Rxe4
{[%clk 0:04:04]} 17. Bf3 {[%clk 0:04:24.2]} 17... Rc4 {[%clk 0:03:59.4]} 18.
Rhe1 {[%clk 0:04:17.5]} 18... Bc3+ {[%clk 0:03:57.8]} 19. Kd3 {[%clk 0:04:16.9]}
19... Bxe1 {[%clk 0:03:47]} 20. Rxe1 {[%clk 0:04:08.4]} 20... Ba6 {[%clk
0:03:31]} 21. Rxe7+ {[%clk 0:04:04.8]} 21... Kf8 {[%clk 0:03:29.7]} 22. Rxa7
{[%clk 0:03:59.3]} 22... Ra4+ {[%clk 0:03:24.7]} 23. Ke3 {[%clk 0:03:46.4]}
23... Kg7 {[%clk 0:03:20.4]} 24. Bxc6 {[%clk 0:03:41.9]} 24... Ra3+ {[%clk
0:02:44.8]} 25. Kd2 {[%clk 0:03:34.7]} 25... Ra5 {[%clk 0:02:03.6]} 26. Bb7
{[%clk 0:03:11.5]} 26... Bxb7 {[%clk 0:01:49.4]} 27. Rxa5 {[%clk 0:03:10.3]}
27... Bxg2 {[%clk 0:01:48.5]} 28. Ra6 {[%clk 0:03:01.3]} 28... Ra8 {[%clk
0:01:36.4]} 29. Rxd6 {[%clk 0:02:52.3]} 29... Rxa2 {[%clk 0:01:22.4]} 30. Bf6+
{[%clk 0:02:50.7]} 30... Kh7 {[%clk 0:01:21]} 31. Rd8 {[%clk 0:02:49.8]} 31...
Ra8 {[%clk 0:01:18.5]} 32. Rd7 {[%clk 0:02:23.6]} 32... Kg8 {[%clk 0:01:11.5]}
33. c4 {[%clk 0:02:19.3]} 33... Bh3 {[%clk 0:01:04.9]} 34. Re7 {[%clk
0:02:08.8]} 34... Kf8 {[%clk 0:00:58.4]} 35. Rb7 {[%clk 0:01:51.1]} 35... Bc8
{[%clk 0:00:55.8]} 36. Rc7 {[%clk 0:01:48.8]} 36... Be6 {[%clk 0:00:54.6]} 37.
c5 {[%clk 0:01:47.6]} 37... Rc8 {[%clk 0:00:53]} 38. Rxc8+ {[%clk 0:01:43.7]}
38... Bxc8 {[%clk 0:00:51.5]} 39. Ke3 {[%clk 0:01:43.3]} 39... Ke8 {[%clk
0:00:50.6]} 40. Kf4 {[%clk 0:01:41.2]} 40... Kd7 {[%clk 0:00:49.6]} 41. Ke5
{[%clk 0:01:38.4]} 41... Kc6 {[%clk 0:00:48.8]} 42. Be7 {[%clk 0:01:37.9]} 42...
Be6 {[%clk 0:00:47.8]} 43. Kf6 {[%clk 0:01:36.9]} 43... Ba2 {[%clk 0:00:47.1]}
44. Bd6 {[%clk 0:01:36.2]} 44... Bb3 {[%clk 0:00:46.1]} 45. Ke5 {[%clk
0:01:35.3]} 45... Ba2 {[%clk 0:00:45.3]} 1/2-1/2

[Event "Live Chess"]
[Site "Chess.com"]
[Date "2023.05.21"]
[Round "-"]
[White "Tushinskiy"]
[Black "LodeshChess"]
[Result "1-0"]
[WhiteElo "2177"]
[BlackElo "1176"]
[TimeControl "300"]
[EndTime "18:39:36 PDT"]
[Termination "Tushinskiy won by checkmate"]

1. d4 {[%clk 0:04:57.4]} 1... Nf6 {[%clk 0:04:57]} 2. c3 {[%clk 0:04:56.3]} 2...
d5 {[%clk 0:04:52.5]} 3. Nf3 {[%clk 0:04:55.2]} 3... Bg4 {[%clk 0:04:48.6]} 4.
Bf4 {[%clk 0:04:54.3]} 4... Bxf3 {[%clk 0:04:47]} 5. gxf3 {[%clk 0:04:54.2]}
5... e6 {[%clk 0:04:46.4]} 6. Nd2 {[%clk 0:04:51.5]} 6... c5 {[%clk 0:04:45.5]}
7. e3 {[%clk 0:04:50.1]} 7... c4 {[%clk 0:04:38.4]} 8. e4 {[%clk 0:04:48.2]}
8... dxe4 {[%clk 0:04:19.8]} 9. fxe4 {[%clk 0:04:46.8]} 9... b5 {[%clk
0:04:14.1]} 10. a4 {[%clk 0:04:45.3]} 10... Qb6 {[%clk 0:03:58.9]} 11. axb5
{[%clk 0:04:38]} 11... Qxb5 {[%clk 0:03:57.5]} 12. Nxc4 {[%clk 0:04:37.2]} 12...
Qb7 {[%clk 0:03:33.7]} 13. Bg2 {[%clk 0:04:19.4]} 13... Nxe4 {[%clk 0:03:29.2]}
14. Qa4+ {[%clk 0:04:17.5]} 14... Nd7 {[%clk 0:03:22.6]} 15. Ne5 {[%clk
0:04:14]} 15... Rd8 {[%clk 0:03:06.4]} 16. O-O {[%clk 0:04:11.8]} 16... Qxb2
{[%clk 0:02:45.3]} 17. Bxe4 {[%clk 0:04:07.9]} 17... Bd6 {[%clk 0:02:19.6]} 18.
Bc6 {[%clk 0:03:54.7]} 18... Bxe5 {[%clk 0:02:15.5]} 19. Bxe5 {[%clk 0:03:54.6]}
19... Qxc3 {[%clk 0:01:48.1]} 20. Rae1 {[%clk 0:03:52.5]} 20... Qd3 {[%clk
0:01:17.2]} 21. d5 {[%clk 0:03:46]} 21... Qg6+ {[%clk 0:01:01.9]} 22. Bg3 {[%clk
0:03:44.2]} 22... O-O {[%clk 0:00:49.8]} 23. Bxd7 {[%clk 0:03:42.5]} 23... h5
{[%clk 0:00:49.3]} 24. dxe6 {[%clk 0:03:38.3]} 24... h4 {[%clk 0:00:43.2]} 25.
e7 {[%clk 0:03:37.1]} 25... hxg3 {[%clk 0:00:38.4]} 26. hxg3 {[%clk 0:03:37]}
26... Rxd7 {[%clk 0:00:16.5]} 27. exf8=Q+ {[%clk 0:03:32.9]} 27... Kxf8 {[%clk
0:00:15.8]} 28. Qxd7 {[%clk 0:03:31.1]} 28... Kg8 {[%clk 0:00:11.9]} 29. Re8+
{[%clk 0:03:29.3]} 29... Kh7 {[%clk 0:00:11]} 30. Qh3+ {[%clk 0:03:28.5]} 30...
Qh6 {[%clk 0:00:09]} 31. Qxh6+ {[%clk 0:03:27.8]} 31... Kxh6 {[%clk 0:00:08.9]}
32. Ra1 {[%clk 0:03:26.6]} 32... Kg6 {[%clk 0:00:07.8]} 33. Rxa7 {[%clk
0:03:26.5]} 33... f6 {[%clk 0:00:07.4]} 34. Ree7 {[%clk 0:03:25.4]} 34... Kf5
{[%clk 0:00:07.3]} 35. Rxg7 {[%clk 0:03:25.2]} 35... Ke5 {[%clk 0:00:05.7]} 36.
Kg2 {[%clk 0:03:25.1]} 36... f5 {[%clk 0:00:05.1]} 37. Rgd7 {[%clk 0:03:22.4]}
37... Ke6 {[%clk 0:00:03.7]} 38. f4 {[%clk 0:03:20]} 38... Kf6 {[%clk
0:00:01.9]} 39. Rd6# {[%clk 0:03:19.3]} 1-0

[Event "Live Chess"]
[Site "Chess.com"]
[Date "2023.05.21"]
[Round "-"]
[White "LanceMaster23"]
[Black "Biranidun"]
[Result "0-1"]
[WhiteElo "1946"]
[BlackElo "2580"]
[TimeControl "300"]
[EndTime "18:40:02 PDT"]
[Termination "Biranidun won by resignation"]

1. Nf3 {[%clk 0:04:58.5]} 1... Nf6 {[%clk 0:04:59]} 2. d4 {[%clk 0:04:57.7]}
2... g6 {[%clk 0:04:58.5]} 3. Bf4 {[%clk 0:04:46.2]} 3... Bg7 {[%clk 0:04:57.9]}
4. e3 {[%clk 0:04:45.6]} 4... d6 {[%clk 0:04:57]} 5. Be2 {[%clk 0:04:44.9]} 5...
O-O {[%clk 0:04:56.9]} 6. h3 {[%clk 0:04:44]} 6... b6 {[%clk 0:04:56.8]} 7. c3
{[%clk 0:04:43.3]} 7... Bb7 {[%clk 0:04:56.4]} 8. Nbd2 {[%clk 0:04:42.8]} 8...
Nbd7 {[%clk 0:04:56.3]} 9. O-O {[%clk 0:04:41.9]} 9... a6 {[%clk 0:04:56.2]} 10.
a4 {[%clk 0:04:40.5]} 10... c5 {[%clk 0:04:55.9]} 11. Re1 {[%clk 0:04:39.9]}
11... Ra7 {[%clk 0:04:55.1]} 12. Qc2 {[%clk 0:04:36.6]} 12... Qa8 {[%clk
0:04:54.5]} 13. dxc5 {[%clk 0:03:54]} 13... bxc5 {[%clk 0:04:52.6]} 14. Rad1
{[%clk 0:03:30.4]} 14... Ne4 {[%clk 0:04:49.9]} 15. Qb3 {[%clk 0:03:17.2]} 15...
Nxd2 {[%clk 0:04:46.9]} 16. Nxd2 {[%clk 0:03:15.7]} 16... Bxg2 {[%clk
0:04:45.4]} 17. Kh2 {[%clk 0:02:53.9]} 17... Rb8 {[%clk 0:04:41]} 18. Qc2 {[%clk
0:02:50.8]} 18... Bc6 {[%clk 0:04:38.3]} 19. Nc4 {[%clk 0:02:34.8]} 19... Rab7
{[%clk 0:04:37.3]} 20. Rb1 {[%clk 0:02:21.3]} 20... a5 {[%clk 0:04:36.2]} 21.
Red1 {[%clk 0:02:05.1]} 21... Nf6 {[%clk 0:04:35.4]} 22. Nxd6 {[%clk 0:01:57.1]}
22... exd6 {[%clk 0:04:34.5]} 23. Bxd6 {[%clk 0:01:57]} 23... Rc8 {[%clk
0:04:26.5]} 24. Bxc5 {[%clk 0:01:56.3]} 24... Be4 {[%clk 0:04:24]} 25. Bd3
{[%clk 0:01:12.4]} 25... Bxd3 {[%clk 0:04:23.1]} 26. Qxd3 {[%clk 0:01:11.5]}
26... Rxc5 {[%clk 0:04:22.3]} 27. Qd8+ {[%clk 0:01:11]} 27... Qxd8 {[%clk
0:04:21.3]} 28. Rxd8+ {[%clk 0:01:10.7]} 28... Bf8 {[%clk 0:04:21.2]} 29. b4
{[%clk 0:01:08.5]} 29... Rxc3 {[%clk 0:04:15.9]} 30. b5 {[%clk 0:01:07.9]} 30...
Kg7 {[%clk 0:04:14.7]} 0-1

[Event "Live Chess"]
[Site "Chess.com"]
[Date "2023.05.21"]
[Round "-"]
[White "Singapourfeuj"]
[Black "raminguy"]
[Result "0-1"]
[WhiteElo "2152"]
[BlackElo "1938"]
[TimeControl "300"]
[EndTime "18:40:26 PDT"]
[Termination "raminguy won - game abandoned"]

1. d4 {[%clk 0:04:58.1]} 1... d5 {[%clk 0:04:58.9]} 2. Nc3 {[%clk 0:04:56.6]}
2... Nf6 {[%clk 0:04:58]} 3. e4 {[%clk 0:04:55.9]} 3... dxe4 {[%clk 0:04:56.6]}
4. f3 {[%clk 0:04:54.9]} 4... c5 {[%clk 0:04:53.7]} 5. d5 {[%clk 0:04:53.5]}
5... e6 {[%clk 0:04:52.4]} 6. fxe4 {[%clk 0:04:52.7]} 6... exd5 {[%clk
0:04:51.5]} 7. exd5 {[%clk 0:04:51.9]} 7... Bd6 {[%clk 0:04:48.6]} 8. Nf3 {[%clk
0:04:50.9]} 8... O-O {[%clk 0:04:47.4]} 9. Bd3 {[%clk 0:04:48.7]} 9... Re8+
{[%clk 0:04:47.1]} 10. Kf1 {[%clk 0:04:46.9]} 10... Bg4 {[%clk 0:04:43.9]} 11.
Bg5 {[%clk 0:04:44.2]} 11... h6 {[%clk 0:04:41.4]} 12. Bh4 {[%clk 0:04:43]}
12... Nbd7 {[%clk 0:04:38.4]} 13. h3 {[%clk 0:04:40.8]} 13... Bh5 {[%clk
0:04:32.8]} 14. g4 {[%clk 0:04:39.8]} 14... Bg6 {[%clk 0:04:31.4]} 15. Bxg6
{[%clk 0:04:38.8]} 15... fxg6 {[%clk 0:04:31.1]} 16. Kg2 {[%clk 0:04:38.1]}
16... Qe7 {[%clk 0:04:15.5]} 0-1

[Event "Live Chess"]
[Site "Chess.com"]
[Date "2023.05.21"]
[Round "-"]
[White "1600x"]
[Black "xx_blindpuffin_xx"]
[Result "1/2-1/2"]
[WhiteElo "1899"]
[BlackElo "2200"]
[TimeControl "300"]
[EndTime "18:41:48 PDT"]
[Termination "Game drawn by repetition"]

1. e4 {[%clk 0:04:55.2]} 1... c6 {[%clk 0:04:57.7]} 2. d4 {[%clk 0:04:50.3]}
2... d5 {[%clk 0:04:57.6]} 3. e5 {[%clk 0:04:48.8]} 3... Bf5 {[%clk 0:04:54.6]}
4. Ne2 {[%clk 0:04:46.3]} 4... e6 {[%clk 0:04:44.6]} 5. h4 {[%clk 0:04:43.6]}
5... h6 {[%clk 0:04:39]} 6. Nd2 {[%clk 0:04:33.6]} 6... c5 {[%clk 0:04:36.2]} 7.
c3 {[%clk 0:04:27.9]} 7... Nc6 {[%clk 0:04:34]} 8. Ng3 {[%clk 0:04:23.3]} 8...
Bh7 {[%clk 0:04:29.4]} 9. dxc5 {[%clk 0:04:21.6]} 9... Bxc5 {[%clk 0:04:27.7]}
10. Nb3 {[%clk 0:04:20]} 10... Bb6 {[%clk 0:04:25.9]} 11. Qg4 {[%clk 0:04:18]}
11... Nxe5 {[%clk 0:04:11]} 12. Qxg7 {[%clk 0:04:14.4]} 12... Qf6 {[%clk
0:04:08]} 13. Qxf6 {[%clk 0:04:10.4]} 13... Nxf6 {[%clk 0:04:07.9]} 14. a4
{[%clk 0:04:08.1]} 14... Nfg4 {[%clk 0:04:01.9]} 15. Nd4 {[%clk 0:04:05.8]}
15... a6 {[%clk 0:03:49.9]} 16. f3 {[%clk 0:03:43.1]} 16... Nf6 {[%clk 0:03:36]}
17. Bxh6 {[%clk 0:03:31.8]} 17... Nd3+ {[%clk 0:03:20.8]} 18. Bxd3 {[%clk
0:03:14.5]} 18... Bxd3 {[%clk 0:03:20.7]} 19. Bg7 {[%clk 0:03:12.5]} 19... Rg8
{[%clk 0:03:13.3]} 20. Bxf6 {[%clk 0:03:07.1]} 20... Rxg3 {[%clk 0:03:11.7]} 21.
Kf2 {[%clk 0:03:05.8]} 21... Rg6 {[%clk 0:03:02.3]} 22. a5 {[%clk 0:03:04.1]}
22... Ba7 {[%clk 0:02:58.9]} 23. Bh8 {[%clk 0:03:02.3]} 23... O-O-O {[%clk
0:02:55.7]} 24. h5 {[%clk 0:03:00.4]} 24... Rh6 {[%clk 0:02:29.2]} 25. Bg7
{[%clk 0:02:58.4]} 25... Rh7 {[%clk 0:02:26.2]} 26. Bf6 {[%clk 0:02:57]} 26...
Re8 {[%clk 0:02:21.4]} 27. Rae1 {[%clk 0:02:54.5]} 27... Rh6 {[%clk 0:02:16.8]}
28. Bg5 {[%clk 0:02:51.6]} 28... Rh7 {[%clk 0:02:12.1]} 29. Bf6 {[%clk
0:02:50.5]} 29... Rh6 {[%clk 0:02:11.1]} 30. Bg5 {[%clk 0:02:48.8]} 30... Rh7
{[%clk 0:01:54.5]} 31. Bf6 {[%clk 0:02:45.6]} 1/2-1/2

[Event "Live Chess"]
[Site "Chess.com"]
[Date "2023.05.21"]
[Round "-"]
[White "PaulyD81"]
[Black "ClassyChameleon"]
[Result "1-0"]
[WhiteElo "1188"]
[BlackElo "1085"]
[TimeControl "300"]
[EndTime "18:42:01 PDT"]
[Termination "PaulyD81 won by checkmate"]

1. d4 {[%clk 0:04:57.7]} 1... d5 {[%clk 0:04:58.7]} 2. c4 {[%clk 0:04:55.6]}
2... e6 {[%clk 0:04:57.2]} 3. e3 {[%clk 0:04:53.8]} 3... a6 {[%clk 0:04:53.4]}
4. Nc3 {[%clk 0:04:52.6]} 4... c6 {[%clk 0:04:51.6]} 5. Nf3 {[%clk 0:04:49.5]}
5... Bb4 {[%clk 0:04:49.6]} 6. Qc2 {[%clk 0:04:44.2]} 6... b5 {[%clk 0:04:46.2]}
7. b3 {[%clk 0:04:20.8]} 7... Nf6 {[%clk 0:04:39.4]} 8. a3 {[%clk 0:04:19.8]}
8... Bd6 {[%clk 0:04:34.6]} 9. c5 {[%clk 0:04:08.4]} 9... Bc7 {[%clk 0:04:30.7]}
10. b4 {[%clk 0:04:05]} 10... O-O {[%clk 0:04:28]} 11. Ne5 {[%clk 0:04:04]}
11... Bxe5 {[%clk 0:04:26.2]} 12. dxe5 {[%clk 0:04:02]} 12... Ne4 {[%clk
0:04:25.4]} 13. Nxe4 {[%clk 0:03:58.9]} 13... dxe4 {[%clk 0:04:24.8]} 14. Qxe4
{[%clk 0:03:55.5]} 14... Nd7 {[%clk 0:04:21.6]} 15. Be2 {[%clk 0:03:46.3]} 15...
f6 {[%clk 0:04:19.1]} 16. exf6 {[%clk 0:03:38.6]} 16... Nxf6 {[%clk 0:04:17.9]}
17. Qd4 {[%clk 0:03:26]} 17... Bd7 {[%clk 0:04:03.6]} 18. O-O {[%clk 0:03:13.1]}
18... Nd5 {[%clk 0:03:53.3]} 19. Bb2 {[%clk 0:02:49.8]} 19... Rf7 {[%clk
0:03:49]} 20. Bh5 {[%clk 0:02:37.8]} 20... g6 {[%clk 0:03:45.8]} 21. Qh8# {[%clk
0:02:31.7]} 1-0